{"text_format":"1","workbook":"xlsx","n_sheets":2,"sheets":["Expense Report","Expense Account"],"not_rendered":{"charts":0,"images":0,"macros":1,"external_links":0,"defined_names":17,"comments":0,"pivot_tables":0},"unopened":[],"bounds":{"document_bytes":16777216,"sheet_cells":100000,"rows_first":2000,"rows_last":500,"rows_between":2000,"halvings":0,"cell_chars":16384,"cell_head_chars":4096},"cells_cut":0,"cells_raw":0,"read":"whole","date_system":"1900"}

{"sheet":"Expense Report","index":0,"n_rows":54,"n_cols":15,"rows_kept":54,"cut":false,"hidden":false,"merged":[[1,2,1,4],[4,4,4,6],[6,4,6,6],[2,2,2,4],[39,2,39,5],[9,2,9,7],[53,2,53,5],[10,2,10,7],[46,2,46,5],[48,2,48,5],[40,2,42,5],[43,3,43,5],[47,3,47,5],[50,2,52,5],[11,2,11,7],[12,2,12,7]]}
[]
[null,null,"Living Water Bible Church"]
[null,null,"Expense Report"]
[]
[null,null,"Name: "]
[]
[null,null,"Check Payble to"]
[]
[null,null,"Instructions"]
[]
[null,null,"Please select an item from the dropdown list of Expense Group first. Then you can selet from the dropdown of Expense Category. "]
[null,null,"For multiple items in same group category, you can use same row. Sales tax may be added as individual item or include into the cost"]
[null,null,"For unbudgeted other expense, please contact council for approval or it will not be reimbursed"]
[]
[]
[null,null,"Date","Expense Group","Expense Category","Descriptions","Cost Item1 ","Cost Item2","Cost Item3","Cost Item4","Cost Item5","Cost Item6","Cost Item7","Sub Total","GL"]
[null,null,null,null,null,null,null,null,null,null,null,null,null,{"$f":"SUM(G17:M17)","v":0},{"$f":"LEFT(E17,4)","v":""}]
[null,null,null,null,null,null,null,null,null,null,null,null,null,{"$f":"SUM(G18:M18)","v":0},{"$f":"LEFT(E18,4)","v":""}]
[null,null,null,null,null,null,null,null,null,null,null,null,null,0,""]
[null,null,null,null,null,null,null,null,null,null,null,null,null,0,""]
[null,null,null,null,null,null,null,null,null,null,null,null,null,0,""]
[null,null,null,null,null,null,null,null,null,null,null,null,null,0,""]
[null,null,null,null,null,null,null,null,null,null,null,null,null,0,""]
[null,null,null,null,null,null,null,null,null,null,null,null,null,0,""]
[null,null,null,null,null,null,null,null,null,null,null,null,null,0,""]
[null,null,null,null,null,null,null,null,null,null,null,null,null,0,""]
[null,null,null,null,null,null,null,null,null,null,null,null,null,0,""]
[null,null,null,null,null,null,null,null,null,null,null,null,null,0,""]
[null,null,null,null,null,null,null,null,null,null,null,null,null,0,""]
[null,null,null,null,null,null,null,null,null,null,null,null,null,0,""]
[null,null,null,null,null,null,null,null,null,null,null,null,null,0,""]
[null,null,null,null,null,null,null,null,null,null,null,null,null,0,""]
[null,null,null,null,null,null,null,null,null,null,null,null,null,0,""]
[null,null,null,null,null,null,null,null,null,null,null,null,null,0,""]
[null,null,null,null,null,null,null,null,null,null,null,null,null,0,""]
[null,null,null,null,null,null,null,null,null,null,null,null,null,0,""]
[]
[null,null,null,null,null,null,null,null,null,null,null,null,"Total",{"$f":"SUM(N17:N36)","v":0}]
[]
[null,null,"Requester's Signature (Not required if filled by web form)"]
[]
[]
[]
[null,null,"Date Submitted:  "]
[]
[]
[null,null,"Approval person"]
[null,null,"Name: "]
[]
[null,null,"                Signature (Not required if approve by email)"]
[]
[]
[]
[null,null,"Approval Date (Not required if approve by email)"]

{"sheet":"Expense Account","index":1,"n_rows":17,"n_cols":17,"rows_kept":17,"cut":false,"hidden":false,"merged":[]}
["Expense Group","Staffing Expense","Operating Expense","General Affair","Worship Prayer","Adult Education","Pastoral Ministry","New Comer Care","Community Service","Children","Mission","Family Ministry","Living Water Fellowship","Student Fellowship","Youth Ministry","Joint Ministry Expense","Other Expense"]
["Living Water Fellowship","5110 Salary & Wages","5210 Rent","5312 Material & Supplies","5321 Honorarium","5331 Honorarium","5341 Honorarium","5351 Honorarium","5362 Material & Supplies","5371 Honorarium","5381 Honorarium","5391 Honorarium","5411 Honorarium","5441 Honorarium","5521 Honorarium","5610 Global Mission","5900 Other Council Approved Expense"]
["Student Fellowship","5120 Health Insurance","5211 Mortgage Interest","5316 Equipment","5322 Material & Supplies","5332 Material & Supplies","5342 Material & Supplies","5352 Material & Supplies","5363 Food","5372 Material & Supplies","5382 Material & Supplies","5392 Material & Supplies","5412 Material & Supplies","5442 Material & Supplies","5522 Material & Supplies","5630 Casualty and Love Ministries"]
["Pastoral Ministry","5130 Life Insurance","5212 Utilities","5319 Misc","5323 Food","5339 Misc","5343 Food","5353 Food",null,"5373 Food","5383 Food","5393 Food","5413 Food","5443 Food","5523 Food","5640 Barnabas Fund"]
["Joint Ministry Expense","5135 Insurance Copay","5213 Outside Service",null,"5326 Equipment",null,"5345 Facility","5355 Facility",null,"5375 Facility","5385 Facility",null,"5414 Friday Food","5444 Fellowship Food","5525 Facility","5650 Junior and Teen Bible Quiz"]
["Youth Ministry","5140 Training & Conference","5214 Property Tax",null,"5329 Misc",null,"5346 Equipment","5359 Misc",null,"5376 Equipment","5386 Equipment",null,"5415 Facility","5445 Facility","5526 Equipment"]
["Children","5150 Worker's Compensation","5220 Insurance",null,null,null,"5349 Misc",null,null,"5379 Misc","5387 Short-Term Mission - Adult",null,"5419 Misc",null,"5529 Misc"]
["Family Ministry","5160 Employer Payroll Tax","5230 Repair & Maintenance",null,null,null,null,null,null,null,"5388 Short-Term Mission - Youth"]
["Community Service","5170 Extended Ministry Expense","5240 Equipment Leasing",null,null,null,null,null,null,null,"5389 Misc"]
["Adult Education","5190 Other Staffing Expense","5250 Professional Fee"]
["New Comer Care",null,"5260 Office Equipment"]
["Worship Prayer",null,"5270 Operating Supplies"]
["Mission",null,"5280 Broadband/Phone"]
["Staffing Expense",null,"5290 Rental Appreciations"]
["Operating Expense",null,"5295 Subscriptions"]
["General Affair",null,"5299 Operating Misc"]
["Other Expense"]